﻿DEPARTMENT FAMILY,ENTITY,Date,Expense Type,Expense Area,Supplier,Transaction number,Amount,Description
DEPARTMENT OF HEALTH,BLACKPOOL TEACHING HOSPITALS NHS FT ,Jan-22,Contractual Clinical Services,Contractual Clinical Services,Agfa Finance,DEIN/22010002,"135,909.60",Admin - Radiology
DEPARTMENT OF HEALTH,BLACKPOOL TEACHING HOSPITALS NHS FT ,Jan-22,Facilities,HARD FM ,Atlas BFW Management Ltd,1710000552,"5,532,338.22",Facilities Management Contract 
DEPARTMENT OF HEALTH,BLACKPOOL TEACHING HOSPITALS NHS FT ,Jan-22,Contractual Clinical Services,Contractual Clinical Services,Atlas Diagnostics Limited,ATL-BVH-0821,"30,730.00",Medical Radiology
DEPARTMENT OF HEALTH,BLACKPOOL TEACHING HOSPITALS NHS FT ,Jan-22,Contractual Clinical Services,Contractual Clinical Services,Beckman Coulter Uk,1510707,"34,532.17",Laboratory Reagents
DEPARTMENT OF HEALTH,BLACKPOOL TEACHING HOSPITALS NHS FT ,Jan-22,Contractual Clinical Services,Contractual Clinical Services,Beckman Coulter Uk,1512895,"31,846.79",Laboratory Reagents
DEPARTMENT OF HEALTH,BLACKPOOL TEACHING HOSPITALS NHS FT ,Jan-22,Facilities ,Ict Telecommunications,Bt Global Services,790338149,"29,239.27",Telephone Rental and Call Charges
DEPARTMENT OF HEALTH,BLACKPOOL TEACHING HOSPITALS NHS FT ,Jan-22,Facilities ,Ict Telecommunications,Bt Telephone Payment Centre,VP86052270I15401,"34,574.64",Telephone Rental and Call Charges
DEPARTMENT OF HEALTH,BLACKPOOL TEACHING HOSPITALS NHS FT ,Jan-22,Facilities ,Ict Telecommunications,Bt Telephone Payment Centre,VP86052270M15501,"29,017.14",Telephone Rental and Call Charges
DEPARTMENT OF HEALTH,BLACKPOOL TEACHING HOSPITALS NHS FT ,Jan-22,Facilities ,Ict Managed Print,Canon (Uk) Ltd,770876615,"29,428.92",Photocopying Rental And Charges
DEPARTMENT OF HEALTH,BLACKPOOL TEACHING HOSPITALS NHS FT ,Jan-22,Contractual Clinical Services,Contractual Clinical Services,Elective Services Ltd,102112,"29,989.20",Gastro Unit
DEPARTMENT OF HEALTH,BLACKPOOL TEACHING HOSPITALS NHS FT ,Jan-22,Contractual Clinical Services,Contractual Clinical Services,Elective Services Ltd,102117,"29,989.20",Gastro Unit
DEPARTMENT OF HEALTH,BLACKPOOL TEACHING HOSPITALS NHS FT ,Jan-22,Contractual Clinical Services,Contractual Clinical Services,Elective Services Ltd,102137,"29,989.20",Gastro Unit
DEPARTMENT OF HEALTH,BLACKPOOL TEACHING HOSPITALS NHS FT ,Jan-22,Facilities ,Soft FM ,Express Launderers,4517,"81,600.00",Laundry / Linen Tender
DEPARTMENT OF HEALTH,BLACKPOOL TEACHING HOSPITALS NHS FT ,Jan-22,Contractual Clinical Services,Contractual Clinical Services,Genmed.me Ltd,19445,"48,007.26",Laboratory Reagents
DEPARTMENT OF HEALTH,BLACKPOOL TEACHING HOSPITALS NHS FT ,Jan-22,Contractual Clinical Services,Contractual Clinical Services,Genmed.me Ltd,19451,"30,821.71",Laboratory Reagents
DEPARTMENT OF HEALTH,BLACKPOOL TEACHING HOSPITALS NHS FT ,Jan-22,Contractual Clinical Services,Contractual Clinical Services,Genmed.me Ltd,19449,"54,464.87",Laboratory Reagents
DEPARTMENT OF HEALTH,BLACKPOOL TEACHING HOSPITALS NHS FT ,Jan-22,Facilities ,Digital Identity,Insight Direct (Uk) Ltd,5319715,"25,891.90",Computer Software / License Fees
DEPARTMENT OF HEALTH,BLACKPOOL TEACHING HOSPITALS NHS FT ,Jan-22,Facilities ,Digital Identity,Insight Direct (Uk) Ltd,5337233,"29,560.94",Computer Software / License Fees
DEPARTMENT OF HEALTH,BLACKPOOL TEACHING HOSPITALS NHS FT ,Jan-22,Facilities ,Digital Identity,Insight Direct (Uk) Ltd,5386603,"28,729.75",Computer Software / License Fees
DEPARTMENT OF HEALTH,BLACKPOOL TEACHING HOSPITALS NHS FT ,Jan-22,Facilities ,Digital Identity,Insight Direct (Uk) Ltd,5425279,"28,658.17",Computer Software / License Fees
DEPARTMENT OF HEALTH,BLACKPOOL TEACHING HOSPITALS NHS FT ,Jan-22,Facilities ,Ict Procurement Expenditure,Insight Direct (Uk) Ltd,2100070431-21,"48,192.62",Computer Software / License Fees
DEPARTMENT OF HEALTH,BLACKPOOL TEACHING HOSPITALS NHS FT ,Jan-22,Facilities ,Ict Maintenance Services,Integrated Medical Solutions Ltd,SIN602725,"67,294.01",Computer Maintenance
DEPARTMENT OF HEALTH,BLACKPOOL TEACHING HOSPITALS NHS FT ,Jan-22,Facilities ,Digital Identity,Intersystems Corporation,2108-002-000900,"139,679.42",External Consultancy Fees
DEPARTMENT OF HEALTH,BLACKPOOL TEACHING HOSPITALS NHS FT ,Jan-22,Facilities ,Digital Identity,Intersystems Corporation,2108-002-000901,"95,742.30",External Consultancy Fees
DEPARTMENT OF HEALTH,BLACKPOOL TEACHING HOSPITALS NHS FT ,Jan-22,Contractual Clinical Services,Laboratory External Tests,Lancashire Teaching Hospitals NHS Foundation Trust,15353539,"34,799.40",Contractual Clinical Services
DEPARTMENT OF HEALTH,BLACKPOOL TEACHING HOSPITALS NHS FT ,Jan-22,Facilities ,Research And Development,Layton Medical Centre,VAL02,"159,803.07",Research And Development
DEPARTMENT OF HEALTH,BLACKPOOL TEACHING HOSPITALS NHS FT ,Jan-22,Contractual Clinical Services,Laboratory External Tests,Manchester University NHS Foundation Trust,488298,"43,410.00",Contractual Clinical Services
DEPARTMENT OF HEALTH,BLACKPOOL TEACHING HOSPITALS NHS FT ,Jan-22,Contractual Clinical Services,Medical Radiology,Medica Reporting Ltd (Medica Group),16864,"77,696.00",Contractual Clinical Services
DEPARTMENT OF HEALTH,BLACKPOOL TEACHING HOSPITALS NHS FT ,Jan-22,Blackpool District Nursing,Blackpool District Nursing,Medstrom Ltd,117519,"31,377.18",Med Surg Eqpt Hire
DEPARTMENT OF HEALTH,BLACKPOOL TEACHING HOSPITALS NHS FT ,Jan-22,Blackpool District Nursing,Blackpool District Nursing,Medstrom Ltd,118667,"32,231.36",Med Surg Eqpt Hire
DEPARTMENT OF HEALTH,BLACKPOOL TEACHING HOSPITALS NHS FT ,Jan-22,Corporate ,Contract : Other External,NHS Midlands and Lancashire CSU,7312321058,"27,833.00",External Consultancy Fees
DEPARTMENT OF HEALTH,BLACKPOOL TEACHING HOSPITALS NHS FT ,Jan-22,Contractual Clinical Services,Contractual Clinical Services,Qiagen Ltd,96410339,"97,860.00",Microbiology
DEPARTMENT OF HEALTH,BLACKPOOL TEACHING HOSPITALS NHS FT ,Jan-22,Contractual Clinical Services,Contractual Clinical Services,Qiagen Ltd,96416361,"160,490.40",Microbiology
DEPARTMENT OF HEALTH,BLACKPOOL TEACHING HOSPITALS NHS FT ,Jan-22,Contractual Clinical Services,Contractual Clinical Services,Siemens Healthcare Diagnostics Ltd,114398617,"84,350.35",Contractual Clinical Services
DEPARTMENT OF HEALTH,BLACKPOOL TEACHING HOSPITALS NHS FT ,Jan-22,Facilities ,Computer Maintenance,Sitekit Applications Ltd,1208,"46,440.00",Project Costs 
DEPARTMENT OF HEALTH,BLACKPOOL TEACHING HOSPITALS NHS FT ,Jan-22,Facilities ,External Consultancy Fees,Sitekit Applications Ltd,1209,"28,560.00",Project Costs 
DEPARTMENT OF HEALTH,BLACKPOOL TEACHING HOSPITALS NHS FT ,Jan-22,Facilities ,External Consultancy Fees,Sitekit Applications Ltd,1213,"34,200.00",Project Costs 
DEPARTMENT OF HEALTH,BLACKPOOL TEACHING HOSPITALS NHS FT ,Jan-22,Facilities ,External Consultancy Fees,Sitekit Applications Ltd,1214,"71,400.00",Project Costs 
DEPARTMENT OF HEALTH,BLACKPOOL TEACHING HOSPITALS NHS FT ,Jan-22,Corporate ,Computer Maintenance,Softcat Plc,INV03287990,"33,204.00",Computer Maintenance
DEPARTMENT OF HEALTH,BLACKPOOL TEACHING HOSPITALS NHS FT ,Jan-22,Corporate ,Computer Maintenance,Softcat Plc,INV03288000,"32,886.00",Computer Maintenance
DEPARTMENT OF HEALTH,BLACKPOOL TEACHING HOSPITALS NHS FT ,Jan-22,Corporate ,Computer Software / License Fees,Softcat Plc,INV03256183,"45,732.00",Computer Software / License Fees
DEPARTMENT OF HEALTH,BLACKPOOL TEACHING HOSPITALS NHS FT ,Jan-22,Contractual Clinical Services,Contractual Clinical Services,Spire Healthcare,RXLFYCICF2122M07,"160,369.36",Surgical Division
DEPARTMENT OF HEALTH,BLACKPOOL TEACHING HOSPITALS NHS FT ,Jan-22,Contractual Clinical Services,Contractual Clinical Services,The Christie NHS Foundation Trust,37606,"26,768.00",Laboratory Radio-Isotopes
DEPARTMENT OF HEALTH,BLACKPOOL TEACHING HOSPITALS NHS FT ,Jan-22,Corporate ,Corporate ,Weightmans Llp,2053662,"80,995.80",Legal Fees
DEPARTMENT OF HEALTH,BLACKPOOL TEACHING HOSPITALS NHS FT ,Jan-22,Capital Purchases ,Capital Purchases ,Addleshaw Goddard LLP,3979893,"42,290.30",Capital Purchases 
DEPARTMENT OF HEALTH,BLACKPOOL TEACHING HOSPITALS NHS FT ,Jan-22,Capital Purchases ,Capital Purchases ,Connell Brothers Ltd,319,"78,203.09",Capital Purchases 
DEPARTMENT OF HEALTH,BLACKPOOL TEACHING HOSPITALS NHS FT ,Jan-22,Capital Purchases ,Capital Purchases ,D & G Builders & Joiners Ltd,53523,"35,203.52",Capital Purchases 
DEPARTMENT OF HEALTH,BLACKPOOL TEACHING HOSPITALS NHS FT ,Jan-22,Capital Purchases ,Capital Purchases ,D & G Builders & Joiners Ltd,53465,"68,400.00",Capital Purchases 
DEPARTMENT OF HEALTH,BLACKPOOL TEACHING HOSPITALS NHS FT ,Jan-22,Capital Purchases ,Capital Purchases ,Gilling Dod Ltd,INV-9443,"48,595.80",Capital Purchases 
DEPARTMENT OF HEALTH,BLACKPOOL TEACHING HOSPITALS NHS FT ,Jan-22,Capital Purchases ,Capital Purchases ,D & G Builders & Joiners Ltd,53443,"40,772.27",Capital Purchases 
DEPARTMENT OF HEALTH,BLACKPOOL TEACHING HOSPITALS NHS FT ,Jan-22,Capital Purchases ,Capital Purchases ,Vanguard Healthcare Solutions Ltd,14566,"3,086,550.00",Capital Purchases 
DEPARTMENT OF HEALTH,BLACKPOOL TEACHING HOSPITALS NHS FT ,Jan-22,Capital Purchases ,Capital Purchases ,Vanguard Healthcare Solutions Ltd,14571,"409,597.44",Capital Purchases 
DEPARTMENT OF HEALTH,BLACKPOOL TEACHING HOSPITALS NHS FT ,Jan-22,Capital Purchases ,Capital Purchases ,Insight Direct (Uk) Ltd,2100055430-21,"66,126.81",Capital Purchases 
DEPARTMENT OF HEALTH,BLACKPOOL TEACHING HOSPITALS NHS FT ,Jan-22,Capital Purchases ,Capital Purchases ,Insight Direct (Uk) Ltd,2100055431-21,"63,201.95",Capital Purchases 
DEPARTMENT OF HEALTH,BLACKPOOL TEACHING HOSPITALS NHS FT ,Jan-22,Capital Purchases ,Capital Purchases ,Integrated Medical Solutions Ltd,SIN602724,"29,337.60",Capital Purchases 
DEPARTMENT OF HEALTH,BLACKPOOL TEACHING HOSPITALS NHS FT ,Jan-22,Capital Purchases ,Capital Purchases ,Unique Health Solutions Ltd,UHS-22027,"30,000.00",Capital Purchases 
DEPARTMENT OF HEALTH,BLACKPOOL TEACHING HOSPITALS NHS FT ,Jan-22,Capital Purchases ,Capital Purchases ,Siemens Healthcare Diagnostics Ltd,1051110207,"88,920.00",Capital Purchases 
DEPARTMENT OF HEALTH,BLACKPOOL TEACHING HOSPITALS NHS FT ,Jan-22,Capital Purchases ,Capital Purchases ,Siemens Healthcare Diagnostics Ltd,1051110321,"188,670.00",Capital Purchases 
DEPARTMENT OF HEALTH,BLACKPOOL TEACHING HOSPITALS NHS FT ,Jan-22,Capital Purchases ,Capital Purchases ,Cook (Uk) Ltd,21091261,"75,000.00",Capital Purchases 
DEPARTMENT OF HEALTH,BLACKPOOL TEACHING HOSPITALS NHS FT ,Jan-22,Capital Purchases ,Capital Purchases ,Getinge Ltd,3129123915,"48,000.00",Capital Purchases 
DEPARTMENT OF HEALTH,BLACKPOOL TEACHING HOSPITALS NHS FT ,Jan-22,Capital Purchases ,Capital Purchases ,Becton Dickinson Dispensing Uk Ltd,CI018254,"112,219.30",Capital Purchases 
DEPARTMENT OF HEALTH,BLACKPOOL TEACHING HOSPITALS NHS FT ,Jan-22,Capital Purchases ,Capital Purchases ,Medtronic Ltd,1204784613,"99,000.00",Capital Purchases 
DEPARTMENT OF HEALTH,BLACKPOOL TEACHING HOSPITALS NHS FT ,Jan-22,Capital Purchases ,Capital Purchases ,Werfen Ltd,9100384631,"51,000.00",Capital Purchases 
DEPARTMENT OF HEALTH,BLACKPOOL TEACHING HOSPITALS NHS FT ,Jan-22,Capital Purchases ,Capital Purchases ,Philips Electronics UK Ltd T/A Philips Healthcare UK,7300378152,"50,142.50",Capital Purchases 
DEPARTMENT OF HEALTH,BLACKPOOL TEACHING HOSPITALS NHS FT ,Jan-22,Capital Purchases ,Capital Purchases ,The James Mercer Group Ltd,80333,"96,526.18",Capital Purchases 
DEPARTMENT OF HEALTH,BLACKPOOL TEACHING HOSPITALS NHS FT ,Jan-22,Pharmacy Drugs Inventory ,Pharmacy Drugs Inventory ,Bristol Myers Squibb Pharmaceuticals Ltd,100677712,"36,101.52",Pharmacy Drugs Inventory 
DEPARTMENT OF HEALTH,BLACKPOOL TEACHING HOSPITALS NHS FT ,Jan-22,Pharmacy Drugs Inventory ,Pharmacy Drugs Inventory ,Roche Products Ltd,1322219160,"63,274.48",Pharmacy Drugs Inventory 
DEPARTMENT OF HEALTH,BLACKPOOL TEACHING HOSPITALS NHS FT ,Jan-22,Pharmacy Drugs Inventory ,Pharmacy Drugs Inventory ,Roche Products Ltd,132222065,"28,154.26",Pharmacy Drugs Inventory 
DEPARTMENT OF HEALTH,BLACKPOOL TEACHING HOSPITALS NHS FT ,Jan-22,Pharmacy Drugs Inventory ,Pharmacy Drugs Inventory ,Roche Products Ltd,1322223178,"38,798.60",Pharmacy Drugs Inventory 
DEPARTMENT OF HEALTH,BLACKPOOL TEACHING HOSPITALS NHS FT ,Jan-22,Pharmacy Drugs Inventory ,Pharmacy Drugs Inventory ,Roche Products Ltd,1322224077,"32,805.88",Pharmacy Drugs Inventory 
DEPARTMENT OF HEALTH,BLACKPOOL TEACHING HOSPITALS NHS FT ,Jan-22,Pharmacy Drugs Inventory ,Pharmacy Drugs Inventory ,Baxter Healthcare Ltd,21322972,"59,219.76",Pharmacy Drugs Inventory 
DEPARTMENT OF HEALTH,BLACKPOOL TEACHING HOSPITALS NHS FT ,Jan-22,Pharmacy Drugs Inventory ,Pharmacy Drugs Inventory ,Baxter Healthcare Ltd,22000200,"59,219.76",Pharmacy Drugs Inventory 
DEPARTMENT OF HEALTH,BLACKPOOL TEACHING HOSPITALS NHS FT ,Jan-22,Pharmacy Drugs Inventory ,Pharmacy Drugs Inventory ,Baxter Healthcare Ltd,22005876,"33,488.64",Pharmacy Drugs Inventory 
DEPARTMENT OF HEALTH,BLACKPOOL TEACHING HOSPITALS NHS FT ,Jan-22,Pharmacy Drugs Inventory ,Pharmacy Drugs Inventory ,Baxter Healthcare Ltd,22008688,"84,812.28",Pharmacy Drugs Inventory 
DEPARTMENT OF HEALTH,BLACKPOOL TEACHING HOSPITALS NHS FT ,Jan-22,Pharmacy Drugs Inventory ,Pharmacy Drugs Inventory ,Aah Hospital Service,44655962R,"41,422.68",Pharmacy Drugs Inventory 
DEPARTMENT OF HEALTH,BLACKPOOL TEACHING HOSPITALS NHS FT ,Jan-22,Pharmacy Drugs Inventory ,Pharmacy Drugs Inventory ,Bayer Plc,824C391780,"68,434.20",Pharmacy Drugs Inventory 
DEPARTMENT OF HEALTH,BLACKPOOL TEACHING HOSPITALS NHS FT ,Jan-22,Pharmacy Drugs Inventory ,Pharmacy Drugs Inventory ,Bayer Plc,824C391781,"45,622.80",Pharmacy Drugs Inventory 
DEPARTMENT OF HEALTH,BLACKPOOL TEACHING HOSPITALS NHS FT ,Jan-22,Pharmacy Drugs Inventory ,Pharmacy Drugs Inventory ,Bayer Plc,824C395271,"54,747.36",Pharmacy Drugs Inventory 
DEPARTMENT OF HEALTH,BLACKPOOL TEACHING HOSPITALS NHS FT ,Jan-22,Pharmacy Drugs Inventory ,Pharmacy Drugs Inventory ,Celgene Ltd,8940259332,"38,646.72",Pharmacy Drugs Inventory 
DEPARTMENT OF HEALTH,BLACKPOOL TEACHING HOSPITALS NHS FT ,Jan-22,Pharmacy Drugs Inventory ,Pharmacy Drugs Inventory ,Novartis Pharmaceuticals Uk Ltd,92540978,"98,834.40",Pharmacy Drugs Inventory 
DEPARTMENT OF HEALTH,BLACKPOOL TEACHING HOSPITALS NHS FT ,Jan-22,Pharmacy Drugs Inventory ,Pharmacy Drugs Inventory ,Novartis Pharmaceuticals Uk Ltd,92546124,"48,081.60",Pharmacy Drugs Inventory 
DEPARTMENT OF HEALTH,BLACKPOOL TEACHING HOSPITALS NHS FT ,Jan-22,Pharmacy Drugs Inventory ,Pharmacy Drugs Inventory ,Novartis Pharmaceuticals Uk Ltd,92552158,"26,712.00",Pharmacy Drugs Inventory 
DEPARTMENT OF HEALTH,BLACKPOOL TEACHING HOSPITALS NHS FT ,Jan-22,Pharmacy Drugs Inventory ,Pharmacy Drugs Inventory ,Alloga Uk Ltd,SIN103346141,"35,078.40",Pharmacy Drugs Inventory 
DEPARTMENT OF HEALTH,BLACKPOOL TEACHING HOSPITALS NHS FT ,Jan-22,Pharmacy Drugs Inventory ,Pharmacy Drugs Inventory ,Alloga Uk Ltd,SIN103347429,"29,250.00",Pharmacy Drugs Inventory 
DEPARTMENT OF HEALTH,BLACKPOOL TEACHING HOSPITALS NHS FT ,Jan-22,Multi-Divisional charge ,Multi-Divisional charge ,St Helens and Knowsley Hospital Services NHS Trust,16810753,"800,000.00",Inter NHS Medical staff recharges
DEPARTMENT OF HEALTH,BLACKPOOL TEACHING HOSPITALS NHS FT ,Jan-22,Multi-Divisional charge ,Multi-Divisional charge ,NHS Supply Chain Co-ordination Limited,1122184031,"164,035.12",NHS Supply Chain Catalogue items
DEPARTMENT OF HEALTH,BLACKPOOL TEACHING HOSPITALS NHS FT ,Jan-22,Multi-Divisional charge ,Multi-Divisional charge ,NHS Supply Chain Co-ordination Limited,1122186290,"123,634.95",NHS Supply Chain Catalogue items
DEPARTMENT OF HEALTH,BLACKPOOL TEACHING HOSPITALS NHS FT ,Jan-22,Multi-Divisional charge ,Multi-Divisional charge ,NHS Supply Chain Co-ordination Limited,1122191332,"198,411.70",NHS Supply Chain Catalogue items
DEPARTMENT OF HEALTH,BLACKPOOL TEACHING HOSPITALS NHS FT ,Jan-22,Multi-Divisional charge ,Multi-Divisional charge ,NHS Supply Chain Co-ordination Limited,1122196953,"200,639.51",NHS Supply Chain Catalogue items
DEPARTMENT OF HEALTH,BLACKPOOL TEACHING HOSPITALS NHS FT ,Jan-22,Multi-Divisional charge ,Multi-Divisional charge ,NHS Supply Chain Co-ordination Limited,1122202232,"437,777.44",NHS Supply Chain Catalogue items
DEPARTMENT OF HEALTH,BLACKPOOL TEACHING HOSPITALS NHS FT ,Jan-22,Multi-Divisional charge ,Multi-Divisional charge ,Sme Hci Ltd,137780,"63,805.49",Multi-Divisional charge 
